fUSD/lending_fUSD_20260213
["ID","MTS","AMOUNT","RATE_DAILY","PERIOD"]
[405340029,1771013442217,-500.0,0.00039999,30]
[405340030,1771013442226,-500.0,0.00039999,30]
[405340031,1771013442236,-151.0,0.00039999,30]
[405340032,1771013442245,-500.0,0.00039999,30]
[405340033,1771013442254,-500.0,0.00039999,30]
[405340034,1771013442263,-151.0,0.00039999,30]
[405340035,1771013442273,-500.0,0.00039999,30]
[405340039,1771013442440,-500.0,0.00039999,30]
[405340041,1771013442450,-250.0,0.00039999,30]
[405340043,1771013442460,-151.0,0.00039999,30]
[405340044,1771013442469,-500.0,0.00039999,30]
[405340045,1771013442479,-500.0,0.00039999,30]
[405340046,1771013442488,-250.0,0.00039999,30]
[405340047,1771013442498,-297.63251512,0.00039999,30]
[405340048,1771013442508,-255.786412,0.00039999,30]
[405340049,1771013442517,-500.0,0.00039999,30]
[405340051,1771013442527,-151.0,0.00039999,30]
[405340052,1771013442536,-500.0,0.00039999,30]
[405340053,1771013442545,-250.0,0.00039999,30]
[405340054,1771013442555,-408.1534335,0.00039999,30]
[405340055,1771013442569,-151.0,0.00039999,30]
[405340056,1771013442579,-250.0,0.00039999,30]
[405340057,1771013442589,-151.0,0.00039999,30]
[405340058,1771013442599,-250.0,0.00039999,30]
[405340059,1771013442611,-500.0,0.00039999,30]
[405340060,1771013442620,-500.0,0.00039999,30]
[405340061,1771013442629,-250.0,0.00039999,30]
[405340062,1771013442640,-500.0,0.00039999,30]
[405340063,1771013442650,-250.0,0.00039999,30]
[405340064,1771013442659,-500.0,0.00039999,30]
[405340065,1771013442669,-500.0,0.00039999,30]
[405340066,1771013442679,-250.0,0.00039999,30]
[405340067,1771013442689,-250.0,0.00039999,30]
[405340068,1771013442699,-250.0,0.00039999,30]
[405340069,1771013442709,-250.0,0.00039999,30]
[405340070,1771013442718,-250.0,0.00039999,30]
[405340071,1771013442729,-250.0,0.00039999,30]
[405340072,1771013442738,-250.0,0.00039999,30]
[405340073,1771013442747,-500.0,0.00039999,30]
[405340074,1771013442757,-500.0,0.00039999,30]
[405340075,1771013442766,-250.0,0.00039999,30]
[405340076,1771013442775,-250.0,0.00039999,30]
[405340077,1771013442784,-250.0,0.00039999,30]
[405340078,1771013442793,-532.11078766,0.00039999,30]
[405340079,1771013442803,-151.0,0.00039999,30]
[405340080,1771013442812,-500.0,0.00039999,30]
[405340081,1771013442821,-250.0,0.00039999,30]
[405340082,1771013442830,-250.0,0.00039999,30]
[405340083,1771013442839,-250.0,0.00039999,30]
[405340084,1771013442849,-151.0,0.00039999,30]
[405340085,1771013442858,-500.0,0.00039999,30]
[405340086,1771013442867,-500.0,0.00039999,30]
[405340087,1771013442876,-250.0,0.00039999,30]
[405340088,1771013442886,-250.0,0.00039999,30]
[405340089,1771013442895,-250.0,0.00039999,30]
[405340090,1771013442905,-151.0,0.00039999,30]
[405340091,1771013442914,-200.0,0.00039999,30]
[405340092,1771013442923,-250.0,0.00039999,30]
[405340093,1771013442932,-250.0,0.00039999,30]
[405340094,1771013442941,-250.0,0.00039999,30]
[405340095,1771013442950,-250.0,0.00039999,30]
[405340096,1771013442960,-151.0,0.00039999,30]
[405340097,1771013442970,-500.0,0.00039999,30]
[405340098,1771013442980,-250.0,0.00039999,30]
[405340099,1771013442990,-250.0,0.00039999,30]
[405340100,1771013443000,-250.0,0.00039999,30]
[405340101,1771013443010,-250.0,0.00039999,30]
[405340102,1771013443019,-500.0,0.00039999,30]
[405340103,1771013443028,-250.0,0.00039999,30]
[405340104,1771013443038,-250.0,0.00039999,30]
[405340105,1771013443047,-250.0,0.00039999,30]
[405340106,1771013443057,-500.0,0.00039999,30]
[405340107,1771013443067,-250.0,0.00039999,30]
[405340108,1771013443076,-250.0,0.00039999,30]
[405340109,1771013443085,-398.04903173,0.00039999,30]
[405340110,1771013443095,-250.0,0.00039999,30]
[405340111,1771013443106,-500.0,0.00039999,30]
[405340112,1771013443115,-250.0,0.00039999,30]
[405340113,1771013443124,-250.0,0.00039999,30]
[405340114,1771013443133,-250.0,0.00039999,30]
[405340115,1771013443142,-250.0,0.00039999,30]
[405340116,1771013443151,-250.0,0.00039999,30]
[405340117,1771013443160,-261.88975842,0.00039999,30]
[405340118,1771013443169,-250.0,0.00039999,30]
[405340119,1771013443178,-250.0,0.00039999,30]
[405340120,1771013443188,-250.0,0.00039999,30]
[405340121,1771013443198,-500.0,0.00039999,30]
[405340122,1771013443207,-200.0,0.00039999,30]
[405340123,1771013443216,-500.0,0.00039999,30]
[405340124,1771013443225,-250.0,0.00039999,30]
[405340125,1771013443234,-504.3084656,0.00039999,30]
[405340126,1771013443243,-250.0,0.00039999,30]
[405340127,1771013443252,-500.0,0.00039999,30]
[405340129,1771013443262,-250.0,0.00039999,30]
[405340130,1771013443271,-500.0,0.00039999,30]
[405340131,1771013443281,-250.0,0.00039999,30]
[405340132,1771013443290,-500.0,0.00039999,30]
[405340133,1771013443300,-250.0,0.00039999,30]
[405340134,1771013443309,-500.0,0.00039999,30]
[405340135,1771013443319,-250.0,0.00039999,30]
[405340137,1771013443328,-500.0,0.00039999,30]
[405340138,1771013443337,-278.64031082,0.00039999,30]
[405340140,1771013443346,-500.0,0.00039999,30]
[405340141,1771013443357,-248.71531821,0.00039999,14]
[405340142,1771013443366,-257.91778498,0.00039999,14]
[405340144,1771013443375,-267.46074303,0.00039999,14]
[405340146,1771013443384,-277.35679052,0.00039999,14]
[405340148,1771013443393,-287.61899177,0.00039999,14]
[405340150,1771013443403,-390.55904704,0.00039999,14]
[405340152,1771013443412,-150.0,0.00039999,2]
[405340153,1771013443421,-152.68102723,0.00039999,2]
[405340154,1771013443430,-487920.99589048,0.0004,120]
[405340155,1771013443440,-5045.17628874,0.0004,120]
[405340156,1771013443450,-1999.15330172,0.0004,30]
[405340157,1771013443459,-5002.12182928,0.0004,7]
[405340158,1771013443468,-3092.90790449,0.0004,120]
[405340159,1771013443477,-646.74562772,0.0004,120]
[405340160,1771013443487,-2052.82604427,0.0004,120]
[405340161,1771013443497,-18803.22318422,0.0004,120]
[405340162,1771013443507,-10741.89523399,0.0004,120]
[405340163,1771013443517,-183.61562753,0.0004,120]
[405340164,1771013443527,-222.12145776,0.0004,120]
[405340165,1771013443538,-356.0770314,0.0004,120]
[405340166,1771013443547,-760.11542978,0.0004,120]
[405340167,1771013443561,-160.0,0.0004,120]
[405340168,1771013443571,-160.0,0.0004,7]
[405340169,1771013443581,-173.38608461,0.0004,7]
[405340170,1771013443590,-291.54305096,0.0004,45]
[405340171,1771013443602,-152.0,0.0004,120]
[405340172,1771013443611,-379.1,0.0004,30]
[405340173,1771013443621,-500.0,0.0004,120]
[405340174,1771013443630,-154.0,0.0004,120]
[405340175,1771013443641,-155.0,0.0004,14]
[405340176,1771013443651,-203.31176377,0.0004,30]
[405340177,1771013443661,-151.0,0.0004,30]
[405340178,1771013443671,-160.0,0.0004,120]
[405340179,1771013443681,-160.0,0.0004,30]
[405340180,1771013443691,-152.0,0.0004,14]
[405340181,1771013443701,-22500.0,0.0004,120]
[405340182,1771013443711,-25000.0,0.0004,120]
[405340183,1771013443720,-2500.0,0.0004,120]
[405340184,1771013443730,-12500.0,0.0004,120]
[405340185,1771013443739,-155.0,0.0004,14]
[405340186,1771013443749,-1506.0,0.0004,14]
[405340187,1771013443759,-155.0,0.0004,14]
[405340188,1771013443768,-152.0,0.0004,14]
[405340189,1771013443777,-1506.0,0.0004,14]
[405340190,1771013443787,-300.0,0.0004,14]
[405340191,1771013443797,-153.0,0.0004,14]
[405340192,1771013443807,-155.0,0.0004,14]
[405340193,1771013443817,-152.0,0.0004,14]
[405340194,1771013443826,-1506.0,0.0004,14]
[405340195,1771013443836,-153.0,0.0004,14]
[405340196,1771013443845,-155.0,0.0004,14]
[405340197,1771013443854,-152.0,0.0004,14]
[405340198,1771013443864,-1506.0,0.0004,14]
[405340199,1771013443873,-159.0,0.0004,14]
[405340200,1771013443883,-153.0,0.0004,14]
[405340201,1771013443892,-195.63555182,0.0004,14]
[405340202,1771013443901,-152.0,0.0004,14]
[405340203,1771013443911,-1506.0,0.0004,14]
[405340204,1771013443920,-159.0,0.0004,14]
[405340205,1771013443930,-153.0,0.0004,14]
[405340206,1771013443939,-152.0,0.0004,14]
[405340207,1771013443948,-1506.0,0.0004,14]
[405340208,1771013443957,-153.0,0.0004,14]
[405340209,1771013443967,-160.66038704,0.0004,14]
[405340210,1771013443977,-152.0,0.0004,14]
[405340211,1771013443986,-1506.0,0.0004,14]
[405340212,1771013443996,-153.0,0.0004,14]
[405340213,1771013444005,-152.0,0.0004,14]
[405340214,1771013444015,-1506.0,0.0004,14]
[405340215,1771013444024,-160.37537981,0.0004,14]
[405340216,1771013444034,-153.0,0.0004,14]
[405340217,1771013444043,-152.0,0.0004,14]
[405340218,1771013444052,-1506.0,0.0004,14]
[405340219,1771013444062,-152.0,0.0004,14]
[405340220,1771013444071,-153.0,0.0004,14]
[405340221,1771013444080,-1506.0,0.0004,14]
[405340222,1771013444090,-1506.0,0.0004,14]
[405340223,1771013444099,-153.0,0.0004,14]
[405340224,1771013444108,-1506.0,0.0004,14]
[405340225,1771013444118,-153.0,0.0004,14]
[405340226,1771013444127,-1506.0,0.0004,14]
[405340227,1771013444136,-153.0,0.0004,14]
[405340228,1771013444145,-1506.0,0.0004,14]
[405340229,1771013444155,-153.0,0.0004,14]
[405340230,1771013444164,-1506.0,0.0004,14]
[405340231,1771013444173,-153.0,0.0004,14]
[405340232,1771013444182,-1506.0,0.0004,14]
[405340233,1771013444191,-153.0,0.0004,14]
[405340234,1771013444200,-152.0,0.0004,14]
[405340235,1771013444211,-1506.0,0.0004,14]
[405340236,1771013444220,-153.0,0.0004,14]
[405340237,1771013444230,-152.0,0.0004,14]
[405340238,1771013444240,-153.0,0.0004,14]
[405340239,1771013444249,-1506.0,0.0004,14]
[405340240,1771013444259,-152.0,0.0004,14]
[405340241,1771013444268,-153.0,0.0004,14]
[405340242,1771013444278,-152.0,0.0004,14]
[405340243,1771013444288,-1506.0,0.0004,14]
[405340244,1771013444297,-153.0,0.0004,14]
[405340245,1771013444307,-152.0,0.0004,14]
[405340246,1771013444316,-1506.0,0.0004,14]
[405340247,1771013444326,-153.0,0.0004,14]
[405340248,1771013444335,-152.0,0.0004,14]
[405340249,1771013444345,-1506.0,0.0004,14]
[405340250,1771013444354,-152.0,0.0004,14]
[405340251,1771013444364,-1506.0,0.0004,14]
[405340252,1771013444373,-152.0,0.0004,14]
[405340253,1771013444385,-152.0,0.0004,14]
[405340254,1771013444394,-152.0,0.0004,14]
[405340255,1771013444403,-152.0,0.0004,14]
[405340256,1771013444413,-152.0,0.0004,14]
[405340257,1771013444423,-727.0,0.0004,30]
[405340258,1771013444432,-744.0,0.0004,30]
[405340259,1771013444442,-729.0,0.0004,30]
[405340260,1771013444451,-3403.1563373,0.00040009,2]
[405340261,1771013444461,-400.73548,0.00040088,30]
[405340262,1771013444470,-152.0,0.00040116,11]
[405340263,1771013444482,-150.0,0.00040165,2]
[405340264,1771013444492,-400.73548,0.00040288,30]
[405340265,1771013444501,-182.92,0.000403,14]
[405340266,1771013444511,-13465.44036426,0.0004031,15]
[405340267,1771013444521,-18520.31911355,0.0004031,15]
[405340268,1771013444530,-2350.66229071,0.00040313,5]
[405340269,1771013444539,-16929.22370311,0.00040313,5]
[405340270,1771013444548,-1000.0,0.00040324,2]
[405340271,1771013444560,-1500.0,0.00040324,2]
[405340272,1771013444572,-22500.0,0.00040375,120]
[405340273,1771013444581,-12500.0,0.00040375,120]
[405340274,1771013444591,-283.8,0.000404,14]
[405340275,1771013444601,-1999.0,0.0004041,120]
[405340276,1771013444611,-400.73548,0.00040488,30]
[405340277,1771013444620,-137311.6,0.000405,14]
[405340278,1771013444630,-2500.0,0.000405,120]
[405340279,1771013444641,-661.47,0.00040599,2]
[405340280,1771013444651,-182.92,0.000406,14]
[405340281,1771013444661,-675.18,0.000406,14]
[405340282,1771013444670,-194.43,0.000406,14]
[405340283,1771013444680,-400.73548,0.00040688,30]
[405340284,1771013444690,-253.0,0.0004075,120]
[405340285,1771013444699,-11212.39,0.0004075,120]
[405340286,1771013444709,-315.05,0.0004075,120]
[405340287,1771013444719,-2900.21310682,0.00040796,2]
[405340288,1771013444730,-1153.93738372,0.00040796,2]
[405340289,1771013444740,-5540.37495166,0.00040796,2]
[405340290,1771013444750,-152.0,0.000408,120]
[405340291,1771013444760,-379.1,0.000408,30]
[405340292,1771013444770,-166.66,0.00040875,2]
[405340293,1771013444779,-518.8,0.00040879,30]
[405340294,1771013444788,-400.73548,0.00040888,30]
[405340295,1771013444798,-154.0,0.000409,120]
[405340296,1771013444807,-661.47,0.00040999,2]
[405340297,1771013444817,-2395.62820092,0.00041,30]
[405340298,1771013444827,-200.33330539,0.00041,2]
[405340299,1771013444837,-137495.847432,0.00041,120]
[405340300,1771013444847,-4040.51576498,0.00041,35]
[405340301,1771013444856,-967.68256866,0.00041,120]
[405340302,1771013444866,-280.0,0.00041,120]
[405340303,1771013444876,-2500.0,0.00041,120]
[405340304,1771013444885,-451.45757138,0.00041068,120]
[405340305,1771013444895,-526.70049995,0.00041068,120]
[405340306,1771013444904,-419.210602,0.00041068,120]
[405340307,1771013444915,-3403.1563373,0.00041085,2]
[405340308,1771013444924,-400.73548,0.00041088,30]
[405340309,1771013444931,-1999.0,0.00041095,120]
[405340310,1771013444939,-839.0,0.00041096,120]
[405340311,1771013444945,-20244.32,0.00041096,120]
[405340312,1771013444952,-522.0,0.00041182,23]
[405340313,1771013444959,-160.0,0.000412,120]
[405340314,1771013444966,-160.0,0.000412,7]
[405340315,1771013444974,-173.38608461,0.000412,7]
[405340316,1771013444982,-200.0,0.00041234,120]
[405340317,1771013444989,-400.73548,0.00041288,30]
[405340318,1771013444998,-152.0,0.00041302,12]
[405340319,1771013445005,-800.0,0.00041345,13]
[405340320,1771013445013,-800.0,0.00041345,13]
[405340321,1771013445021,-800.0,0.00041345,13]
[405340322,1771013445028,-800.0,0.00041345,13]
[405340323,1771013445036,-800.0,0.00041345,13]
[405340324,1771013445043,-370.0,0.00041345,13]
[405340325,1771013445050,-1000.0,0.00041395,30]
[405340326,1771013445056,-152.12,0.00041395,120]
[405340327,1771013445063,-302.0,0.000414,30]
[405340328,1771013445071,-987.0,0.000414,30]
[405340329,1771013445080,-615.0,0.000414,30]
[405340330,1771013445090,-201.0,0.000414,30]
[405340331,1771013445099,-1068.75491679,0.00041414,120]
[405340332,1771013445108,-400.73548,0.00041488,30]
[405340333,1771013445118,-152.12,0.00041495,120]
[405340334,1771013445127,-675.18,0.000415,14]
[405340335,1771013445136,-700.0,0.000415,120]
[405340336,1771013445146,-137311.6,0.000415,14]
[405340337,1771013445155,-1813.63029813,0.00041591,4]
[405340338,1771013445164,-152.12,0.00041595,120]
[405340339,1771013445173,-1035.8,0.00041599,30]
[405340340,1771013445182,-152.0,0.000416,120]
[405340341,1771013445191,-379.1,0.000416,30]
[405340342,1771013445201,-206.17,0.00041617,14]
[405340343,1771013445211,-800.0,0.0004164,15]
[405340344,1771013445221,-800.0,0.0004164,15]
[405340345,1771013445230,-800.0,0.0004164,15]
[405340346,1771013445240,-800.0,0.0004164,15]
[405340347,1771013445249,-800.0,0.0004164,15]
[405340348,1771013445258,-800.0,0.0004164,15]
[405340350,1771013445267,-800.0,0.0004164,15]
[405340351,1771013445277,-800.0,0.0004164,15]
[405340352,1771013445287,-839.0,0.00041644,120]
[405340353,1771013445296,-1999.0,0.00041669,30]
[405340354,1771013445306,-20000.0,0.00041671,120]
[405340356,1771013445316,-400.73548,0.00041688,30]
[405340357,1771013445325,-152.12,0.00041695,120]
[405340358,1771013445335,-10481.0,0.000417,117]
[405340359,1771013445344,-194.43,0.000417,14]
[405340360,1771013445353,-1999.0,0.0004178,120]
[405340361,1771013445364,-152.12,0.00041795,120]
[405340362,1771013445373,-194.43,0.000418,14]
[405340363,1771013445382,-400.73548,0.00041888,30]
[405340364,1771013445392,-152.12,0.00041895,120]
[405340365,1771013445401,-154.0,0.000419,120]
[405340366,1771013445411,-152.12,0.00041995,120]
[405340367,1771013445421,-661.47,0.00041999,2]
[405340369,1771013445430,-661.47,0.00041999,2]
[405340370,1771013445440,-661.47,0.00041999,2]
[405340371,1771013445449,-661.47,0.00041999,2]
[405340372,1771013445459,-661.55968518,0.00041999,2]
[405340373,1771013445467,-16316.0,0.00042,2]
[405340374,1771013445478,-199.0,0.00042,30]
[405340375,1771013445487,-6190.01431833,0.00042,120]
[405340376,1771013445630,-177.46649131,0.00042,120]
[405340377,1771013445657,-2741.24019052,0.00042,30]
[405340378,1771013445667,-160.00264688,0.00042,120]
[405340379,1771013445676,-20427.32705973,0.00042,120]
[405340380,1771013445687,-3865.00533774,0.00042,120]
[405340381,1771013445697,-32264.63076746,0.00042,120]
[405340382,1771013445706,-500.0,0.00042,2]
[405340383,1771013445716,-9770.83739931,0.00042,30]
[405340384,1771013445948,-2183.52560609,0.00042,30]
[405340385,1771013445959,-1739.2125644,0.00042,30]
[405340386,1771013445970,-497.813004,0.00042,30]
[405340391,1771013446393,-624.0,0.00039999,30]
[405340392,1771013446403,-16034.84564116,0.00042,30]
[405340393,1771013446550,-304.5,0.00040088,60]
[405340394,1771013446570,-263.5,0.00040088,60]
[405340395,1771013446580,-203.31176377,0.00040599,30]
[405340396,1771013446590,-203.31176377,0.00040796,30]
[405340397,1771013446600,-203.31176377,0.00041,30]
[405340398,1771013446610,-203.31176377,0.00041085,30]
[405340399,1771013446620,-2402.25294558,0.00042,30]
[405340405,1771014304466,-846.972,0.00012529,2]
[405340406,1771014304487,-300.0,0.00012684,2]
[405340407,1771014304507,-3195.5248,0.00012685,2]
[405340408,1771014304527,-5099.0263,0.00012685,2]
[405340409,1771014304548,-2500.0,0.00012685,2]
[405340410,1771014304569,-277.824,0.00012685,2]
[405340411,1771014304590,-150.0,0.00012699,2]
[405340412,1771014304612,-16668.28720224,0.000127,2]
[405340413,1771014304634,-12413.52665325,0.000127,2]
[405340414,1771014304654,-255.0,0.00012784,2]
[405340415,1771014304680,-2804.766,0.00012785,2]
[405340416,1771014304702,-202.55,0.000129,2]
[405340417,1771014304723,-32832.125,0.00013678,2]
[405340418,1771014304744,-1000.0,0.00013678,2]
[405340419,1771014304764,-500.0,0.00013698,2]
[405340420,1771014304785,-500.0,0.00013698,2]
[405340421,1771014304806,-500.0,0.00013698,2]
[405340422,1771014304832,-500.0,0.00013698,2]
[405340423,1771014304854,-500.0,0.00013698,2]
[405340424,1771014304874,-500.0,0.00013698,2]
[405340425,1771014304896,-500.0,0.00013698,2]
[405340426,1771014304916,-500.0,0.00013698,2]
[405340427,1771014304937,-507.92586817,0.00013698,2]
[405340428,1771014304958,-2493.28,0.000137,2]
[405340429,1771014304979,-2493.28,0.000137,2]
[405340430,1771014304999,-2493.28,0.000137,2]
[405340431,1771014305019,-2493.28,0.000137,2]
[405340432,1771014305040,-2493.28,0.000137,2]
[405340433,1771014305060,-150.99,0.000137,2]
[405340434,1771014305080,-9999.99,0.000137,2]
[405340435,1771014305105,-500.0,0.00013777,2]
[405340436,1771014305126,-500.0,0.00013777,2]
[405340437,1771014305147,-500.0,0.00013782,2]
[405340438,1771014305167,-500.0,0.00013782,2]
[405340439,1771014305188,-500.0,0.00013782,2]
[405340440,1771014305208,-500.0,0.00013782,2]
[405340441,1771014305229,-201.71852584,0.00013782,2]
[405340442,1771014305250,-255.0,0.00013804,2]
[405340443,1771014305270,-5000.0,0.00014062,2]
[405340444,1771014305291,-300.89888258,0.00014062,2]
[405340445,1771014305311,-600.0,0.00014062,2]
[405340446,1771014305333,-600.0,0.00014062,2]
[405340447,1771014305354,-600.0,0.00014062,2]
[405340448,1771014305375,-5154.89,0.0001416,2]
[405340449,1771014305395,-433.0,0.0001501,2]
[405340450,1771014305416,-173.38608461,0.00015183,2]
[405340451,1771014305437,-160.0,0.00015183,2]
[405340452,1771014305458,-12413.52665316,0.00015956,2]
[405340453,1771014305479,-250.42900137,0.0001599,2]
[405340454,1771014305501,-296186.24302878,0.00016007,2]
[405340455,1771014357707,-2500.0,0.00012685,2]
[405340456,1771014357733,-195.0,0.00013233,2]
[405340457,1771014357755,-500.0,0.00013698,2]
[405340458,1771014357779,-500.0,0.00013698,2]
[405340459,1771014357802,-300.0,0.00013782,2]
[405340460,1771014357825,-250.0,0.00013953,2]
[405340461,1771014357852,-195.0,0.00013953,2]
[405340462,1771014357877,-500.0,0.00014895,2]
[405340463,1771014357902,-500.0,0.0001516,2]
[405340464,1771014357926,-735.83962123,0.0001516,2]
[405340465,1771014357948,-44824.16037877,0.00016007,2]
[405340467,1771014414273,-32832.125,0.00012685,2]
[405340468,1771014414294,-421.291823,0.00015576,2]
[405340469,1771014414315,-778.71298991,0.00015907,5]
[405340470,1771014414336,-85967.87018709,0.00016007,2]
[405340492,1771014631775,-1200.0,0.00012584,2]
[405340493,1771014631785,-150.0,0.00012584,2]
[405340494,1771014631794,-253.0,0.00012584,2]
[405340495,1771014631805,-1819.01594063,0.00012585,2]
[405340496,1771014631816,-345.11572277,0.00012585,2]
[405340497,1771014631828,-2242.16787944,0.00012585,2]
[405340498,1771014631862,-265.0,0.00012585,2]
[405340499,1771014631874,-2354.96308394,0.00012585,2]
[405340500,1771014631885,-353.8945,0.00012585,2]
[405340505,1771014632128,-9652.00722466,0.00012585,2]
[405340507,1771014637836,-3449.54264834,0.00012585,2]
[405340508,1771014637854,-1156708.22370022,0.00012585,2]
[405340509,1771014637863,-1813.63029816,0.00012585,2]
[405340510,1771014637873,-191.92969229,0.00012675,2]
[405340511,1771014637883,-1000.0,0.00012685,2]
[405340512,1771014637896,-4093.6242,0.00012685,2]
[405340513,1771014637906,-13583.9729,0.00012685,2]
[405340514,1771014637916,-2500.0,0.00012685,2]
[405340515,1771014637927,-212.0,0.00013679,2]
[405340516,1771014637937,-500.0,0.00013698,2]
[405340517,1771014637948,-1291.64542224,0.00015906,2]
[405340518,1771014637957,-2430.3478,0.00015907,2]
[405340519,1771014637967,-160.0,0.0001599,2]
[405340520,1771014637978,-173.38608461,0.00015994,2]
[405340521,1771014637988,-47457.48802173,0.00016007,2]
[405340522,1771014637997,-5000.00857857,0.000162,5]
[405340523,1771014638007,-500.0,0.00016999,2]
[405340524,1771014638017,-500.0,0.00016999,2]
[405340525,1771014638028,-500.0,0.00016999,2]
[405340526,1771014638038,-500.0,0.00016999,2]
[405340527,1771014638047,-500.0,0.00016999,2]
[405340528,1771014638057,-500.0,0.00016999,2]
[405340529,1771014638067,-500.0,0.00016999,2]
[405340530,1771014638077,-533.22086351,0.00016999,2]
[405340531,1771014638087,-500.0,0.00016999,2]
[405340532,1771014638096,-500.0,0.00016999,2]
[405340533,1771014638106,-360309.93712253,0.00017,2]
[405340534,1771014638116,-1551.74,0.00017143,2]
[405340535,1771014638126,-166.66,0.00017462,2]
[405340537,1771014638136,-421.291823,0.0001748,2]
[405340539,1771014638145,-268.0,0.00017698,2]
[405340541,1771014638155,-783.90308371,0.000177,2]
[405340542,1771014638164,-1813.63029813,0.00017771,2]
[405340543,1771014638175,-800.0,0.00017808,2]
[405340544,1771014638184,-166.66,0.0001783,2]
[405340546,1771014638194,-1003.56652033,0.0001786,2]
[405340548,1771014638204,-174.63413926,0.000179,2]
[405340549,1771014638213,-3036.38326915,0.000179,2]
[405340550,1771014638223,-1382.46096312,0.000179,2]
[405340551,1771014638233,-20418.9380238,0.000179,2]
[405340552,1771014638242,-6002.54790103,0.000179,2]
[405340553,1771014638252,-321.0,0.00017904,2]
[405340554,1771014638262,-1827.83673672,0.0001794,2]
[405340555,1771014638272,-191.92969229,0.0001799,2]
[405340556,1771014638282,-191.92969229,0.0001799,2]
[405340557,1771014638291,-179.70658486,0.00017999,2]
[405340558,1771014638301,-500.0,0.00017999,2]
[405340559,1771014638311,-347.32802046,0.00017999,2]
[405340560,1771014638321,-534.88758176,0.00017999,2]
[405340561,1771014638331,-500.0,0.00017999,2]
[405340562,1771014638340,-500.0,0.00017999,2]
[405340563,1771014638350,-500.0,0.00017999,2]
[405340564,1771014638360,-500.0,0.00017999,2]
[405340565,1771014638369,-500.0,0.00017999,2]
[405340566,1771014638379,-500.0,0.00017999,2]
[405340567,1771014638388,-500.0,0.00017999,2]
[405340568,1771014638397,-561.34537482,0.00017999,2]
[405340569,1771014638407,-2009699.12795127,0.00018,2]
[405340570,1771014638419,-825.02024,0.00018,2]
[405340571,1771014638430,-532.94918736,0.00018,2]
[405340572,1771014638461,-253565.49209579,0.00018,2]
[405340573,1771014638472,-692.12501114,0.00018,2]
[405340576,1771014639851,-45730.29696086,0.00018,2]
[405340577,1771014639862,-3935.1740405,0.00018,2]
[405340578,1771014639874,-1160.0,0.00018,2]
[405340579,1771014639963,-567.13354281,0.00018,2]
[405340580,1771014640128,-784315.80711082,0.00018,2]
[405340581,1771014640137,-723005.00319636,0.00018,2]
[405340594,1771014644426,-182.66,0.0001799,3]
[405340595,1771014644436,-1794.4884,0.00018,2]
[405340596,1771014645835,-370.45,0.00017999,2]
[405340600,1771014646413,-129.55,0.00017999,2]
[405340601,1771014646423,-500.0,0.00017999,2]
[405340602,1771014646432,-360.25883579,0.00017999,2]
[405340603,1771014646444,-139.74116421,0.00017999,2]